bitfinex/quotes_ETHUSD_20251119
["timestamp","ask_amount","ask_price","bid_price","bid_amount"]
[1763586969468,0.1991,2956.9,2956.3,9.79429172]
[1763586969670,0.002,2957.3,2956.3,10.16319172]
[1763586969916,0.002,2957.3,2956.3,10.28119172]
[1763586970215,0.002,2957.3,2956.3,10.16319172]
[1763586970416,0.002,2957.3,2956.3,10.28119172]
[1763586970770,0.09999999,2958.9,2957.3,2.037]
[1763586970973,0.09999999,2958.8,2957.5,0.903404]
[1763586971206,0.1991,2959.0,2957.9,0.405504]
[1763586971385,0.1991,2958.9,2958.8,0.405504]
[1763586971724,0.78199999,2960.0,2958.8,0.523504]
[1763586972025,0.682,2960.0,2959.2,1.31249664]
[1763586972176,0.682,2960.0,2959.6,1.31249664]
[1763586972376,0.682,2960.0,2959.8,0.405504]
[1763586972377,0.1991,2960.0,2959.8,0.405504]
[1763586972583,0.09999999,2959.4,2958.8,0.90699264]
[1763586972793,0.4799,2959.3,2958.9,0.523504]
[1763586972988,0.4799,2959.3,2958.8,0.405504]
[1763586973195,0.1991,2960.0,2959.3,0.405504]
[1763586973394,0.1991,2961.0,2959.2,0.6472]
[1763586973395,0.4829,2960.8,2959.9,1.81039664]
[1763586973596,7.86589508,2962.5,2959.8,7.86589508]
[1763586973597,0.1991,2961.6,2960.9,0.15]
[1763586973831,0.09999999,2962.3,2961.6,1.31249664]
[1763586974125,0.09999999,2962.3,2961.0,0.118]
[1763586974126,0.09999999,2962.2,2962.0,1.31249664]
[1763586974331,0.1991,2963.0,2962.0,1.31249664]
[1763586974332,0.09999999,2962.9,2962.2,0.405504]
[1763586974482,0.1991,2963.0,2962.6,1.31249664]
[1763586974680,0.09999999,2962.3,2960.8,0.4869]
[1763586974973,0.4829,2962.9,2961.4,0.405504]
[1763586974974,0.09999999,2962.2,2961.4,0.405504]
[1763586975197,0.1991,2961.5,2961.4,0.405504]
[1763586975709,0.4829,2961.5,2961.2,0.118]
[1763586975912,0.09999999,2961.4,2961.2,0.118]
[1763586976275,0.09999999,2961.4,2960.6,0.15]
[1763586976276,0.09999999,2961.2,2960.2,7.86589508]
[1763586976477,0.1991,2961.6,2960.7,0.90699264]
[1763586976478,0.09999999,2961.0,2960.7,0.90699264]
[1763586976701,0.09999999,2961.2,2960.9,0.405504]
[1763586976912,0.09999999,2961.0,2960.9,0.405504]
[1763586977706,0.58289999,2961.0,2960.9,0.405504]
[1763586977921,0.58289999,2961.0,2960.8,0.117]
[1763586978238,0.4829,2961.2,2960.9,0.405504]
[1763586978444,0.09999999,2961.0,2960.9,0.405504]
[1763586978830,0.09999999,2961.3,2960.9,0.405504]
[1763586979042,0.09999999,2960.6,2960.5,0.117]
[1763586979218,0.09999999,2960.8,2960.5,0.117]
[1763586979422,0.09999999,2960.6,2960.5,1.02399264]
[1763586979751,0.09999999,2960.6,2960.5,0.522504]
[1763586979951,0.09999999,2960.6,2960.5,1.42949664]
[1763586980155,0.09999999,2960.8,2960.6,0.405504]
[1763586980521,0.09999999,2961.1,2960.6,0.405504]
[1763586980718,0.682,2961.6,2960.9,1.31249664]
[1763586980719,0.09999999,2961.5,2960.9,1.31249664]
[1763586980920,0.09999999,2961.5,2961.4,1.31249664]
[1763586981147,0.1991,2961.7,2961.4,1.42949664]
[1763586981523,0.4829,2962.9,2961.6,0.405504]
[1763586981717,0.09999999,2962.5,2962.2,1.31249664]
[1763586981921,0.09999999,2962.5,2962.4,0.405504]
[1763586982122,0.58289999,2962.5,2962.4,0.405504]
[1763586982928,0.58289999,2962.5,2961.9,0.405504]
[1763586983125,0.09999999,2962.0,2961.9,0.405504]
[1763586983336,0.09999999,2961.8,2961.6,0.117]
[1763586983571,0.09999999,2961.8,2961.3,0.58289999]
[1763586983572,0.09999999,2961.4,2961.3,0.58289999]
[1763586983767,0.09999999,2961.2,2961.1,0.117]
[1763586983913,0.09999999,2961.2,2960.7,0.90699264]
[1763586984119,0.09999999,2961.2,2960.1,0.6368]
[1763586984120,0.58289999,2961.2,2960.8,0.117]
[1763586984616,0.679,2960.9,2960.8,0.522504]
[1763586984816,0.1991,2960.9,2960.4,0.4829]
[1763586985021,0.1991,2960.9,2960.6,0.90699264]
[1763586985252,0.1991,2960.9,2960.7,0.405504]
[1763586985639,0.09999999,2961.2,2960.7,0.405504]
[1763586985828,0.002,2961.6,2960.7,0.405504]
[1763586985829,0.09999999,2961.0,2960.7,0.405504]
[1763586986222,0.1936,2960.9,2960.7,0.405504]
[1763586986415,0.4948,2960.8,2960.7,0.405504]
[1763586987016,0.6538,2960.9,2960.7,0.405504]
[1763586987258,0.6538,2960.9,2960.6,0.90699264]
[1763586987429,0.6538,2960.9,2960.5,0.117]
[1763586987630,0.6538,2960.9,2960.6,0.405504]
[1763586987955,0.1936,2960.9,2960.6,0.405504]
[1763586988151,0.09999999,2960.7,2960.6,0.405504]
[1763586988353,0.59479999,2960.7,2960.6,0.405504]
[1763586988758,0.09999999,2960.7,2960.6,0.405504]
[1763586988956,0.29359999,2960.9,2960.6,0.405504]
[1763586989131,0.09999999,2960.7,2960.6,0.405504]
[1763586989334,0.59479999,2960.7,2960.6,0.405504]
[1763586989550,0.09999999,2960.5,2960.3,0.117]
[1763586989750,0.4948,2960.4,2960.3,0.522504]
[1763586989942,0.955,2960.4,2960.3,0.117]
[1763586990143,0.955,2960.4,2960.0,0.90699264]
[1763586990351,0.2029,2960.1,2959.9,0.90699264]
[1763586990537,0.2029,2960.1,2958.0,0.1499]
[1763586990538,0.09999999,2959.6,2958.7,7.86589508]
[1763586990859,0.09999999,2959.2,2958.1,0.4731]
[1763586991021,0.6538,2959.5,2958.0,7.86589508]
[1763586991022,0.09999999,2958.7,2958.0,7.86589508]
[1763586991223,0.09999999,2959.8,2958.6,11.93183891]
[1763586991448,0.1936,2961.2,2959.9,0.405504]
[1763586991649,0.4602,2961.4,2961.0,1.31249664]
[1763586991650,0.09999999,2961.3,2961.0,1.31249664]
[1763586991868,0.09999999,2960.6,2959.8,7.86589508]
[1763586992026,0.4602,2961.3,2959.9,1.02399264]
[1763586992027,0.09999999,2960.4,2959.9,1.02399264]
[1763586992227,0.09999999,2960.4,2959.5,0.90699264]
[1763586992427,0.09999999,2960.4,2959.7,0.90699264]
[1763586992654,0.09999999,2960.4,2959.8,0.405504]
[1763586992963,0.09999999,2960.4,2960.2,0.405504]
[1763586993122,0.09999999,2960.4,2960.3,0.117]
[1763586994474,0.59479999,2960.4,2960.2,0.405504]
[1763586994673,0.09999999,2960.0,2959.3,0.90699264]
[1763586994832,0.09999999,2960.0,2959.4,0.117]
[1763586995032,0.1936,2959.9,2959.4,0.117]
[1763586995275,0.1936,2959.9,2959.5,0.117]
[1763586995797,0.6538,2959.9,2959.6,0.405504]
[1763586996067,0.29359999,2960.9,2959.8,0.883004]
[1763586996265,0.29359999,2960.9,2960.4,1.31249664]
[1763586996435,0.4602,2960.8,2960.6,0.405504]
[1763586996771,0.29359999,2960.9,2960.8,1.31249664]
[1763586996971,0.1936,2960.9,2960.8,1.31249664]
[1763586997175,0.29359999,2960.9,2960.8,1.31249664]
[1763586997377,0.09999999,2961.1,2960.8,1.31249664]
[1763586997678,0.1936,2961.5,2961.0,0.405504]
[1763586997679,0.09999999,2961.3,2961.0,0.405504]
[1763586997892,0.09999999,2961.3,2961.2,9.17839172]
[1763586998373,0.1936,2961.5,2961.3,1.31249664]
[1763586998781,0.1936,2961.5,2961.4,0.117]
[1763586999281,0.09999999,2961.3,2960.8,7.86589508]
[1763586999598,1.1495,2961.5,2960.8,7.86589508]
[1763586999599,0.09999999,2961.1,2960.9,1.42949664]
[1763586999888,0.10199999,2961.6,2961.4,0.405504]
[1763587000042,0.002,2961.6,2961.5,0.522504]
[1763587001541,0.002,2961.6,2961.5,0.405504]
[1763587001739,0.002,2961.6,2961.5,0.522504]
[1763587002753,0.002,2961.6,2961.5,1.508404]
[1763587002948,0.002,2961.6,2961.5,0.522504]
[1763587003705,0.56499999,2961.6,2961.5,0.522504]
[1763587003974,0.10199999,2961.6,2961.5,0.117]
[1763587004555,0.002,2961.6,2961.5,0.117]
[1763587005273,0.002,2961.6,2961.5,1.014204]
[1763587005582,0.002,2961.6,2961.5,1.508404]
[1763587006682,0.002,2961.6,2961.5,5.79206386]
[1763587006979,0.002,2961.6,2961.5,9.67009172]
[1763587007188,0.002,2961.6,2961.5,10.28129172]
[1763587007554,0.002,2961.6,2961.5,9.17839172]
[1763587007758,0.002,2961.6,2961.5,9.29539172]
[1763587008383,0.002,2961.6,2961.5,9.17839172]
[1763587008557,0.002,2961.6,2961.1,0.4942]
[1763587008558,1.05789999,2961.6,2961.1,7.86589508]
[1763587008762,1.05789999,2961.6,2961.2,0.117]
[1763587008963,1.05789999,2961.6,2961.2,1.02399264]
[1763587009167,0.002,2961.6,2961.5,8.77288772]
[1763587009366,0.002,2961.6,2961.5,9.17839172]
[1763587010896,0.002,2961.6,2961.5,8.88988772]
[1763587011266,0.002,2961.6,2961.5,9.29539172]
[1763587012096,0.002,2961.6,2961.5,10.28129172]
[1763587015568,0.002,2961.9,2961.5,10.28129172]
[1763587015569,0.002,2961.9,2961.6,1.80419664]
[1763587015794,0.1936,2963.0,2961.6,1.80419664]
[1763587015795,0.05399999,2962.5,2961.8,0.897204]
[1763587016103,0.05399999,2962.8,2962.5,1.31249664]
[1763587016275,0.05399999,2962.8,2962.7,0.405504]
[1763587017721,0.51699999,2962.8,2962.7,0.405504]
[1763587017871,1.00989999,2962.8,2962.7,0.405504]
[1763587018071,0.05399999,2962.8,2962.7,0.405504]
[1763587018986,1.00989999,2962.8,2962.7,1.31249664]
[1763587019308,1.00989999,2962.8,2962.7,0.117]
[1763587019606,0.05599999,2962.8,2962.7,0.117]
[1763587019791,0.51899999,2962.8,2962.7,0.117]
[1763587020102,1.01189999,2962.8,2962.7,0.117]
[1763587020470,0.05599999,2962.8,2962.7,0.117]
[1763587020665,0.002,2962.8,2962.7,1.014204]
[1763587020908,1.01189999,2962.8,2962.7,0.405504]
[1763587021097,0.05599999,2962.8,2962.7,0.522504]
[1763587021581,1.01189999,2962.8,2962.7,0.117]
[1763587022154,0.002,2962.8,2962.7,0.117]
[1763587022282,1.01189999,2962.8,2962.7,0.117]
[1763587022782,1.01189999,2962.8,2962.5,0.405504]
[1763587022783,0.05399999,2962.6,2962.5,0.405504]
[1763587023106,0.05399999,2962.6,2962.5,0.522504]
[1763587023107,0.51699999,2962.6,2962.5,0.522504]
[1763587023286,1.00989999,2962.6,2962.5,0.522504]
[1763587023487,0.51699999,2962.6,2962.5,0.522504]
[1763587023701,0.05399999,2962.4,2962.1,0.405504]
[1763587023991,0.05399999,2962.6,2962.5,1.31249664]
[1763587024316,0.002,2962.8,2962.5,1.80419664]
[1763587024477,0.002,2962.8,2962.7,0.897204]
[1763587024882,0.002,2962.8,2962.6,0.405504]
[1763587025117,0.002,2962.8,2962.7,0.117]
[1763587025319,0.002,2962.8,2962.6,0.405504]
[1763587025492,0.002,2962.8,2962.7,0.117]
[1763587025693,0.9559,2962.7,2962.5,0.90699264]
[1763587025894,0.002,2962.8,2961.8,0.90699264]
[1763587025895,0.05399999,2962.4,2961.8,0.90699264]
[1763587026096,0.002,2962.8,2962.3,0.90699264]
[1763587026322,0.002,2962.8,2961.7,0.32189699]
[1763587026323,0.002,2962.8,2962.7,9.97960338]
[1763587026523,0.002,2963.1,2962.8,3.34949664]
[1763587026700,0.002,2963.1,2963.0,3.84119664]
[1763587027024,0.05399999,2964.8,2963.8,0.405504]
[1763587027235,0.05399999,2964.8,2964.7,1.31249664]
[1763587027423,0.05399999,2964.8,2964.3,0.405504]
[1763587027728,0.05399999,2964.8,2963.4,0.405504]
[1763587027729,0.05399999,2964.4,2963.4,0.405504]
[1763587027925,0.6498,2964.7,2963.9,1.31249664]
[1763587027926,0.05399999,2964.0,2963.9,1.31249664]
[1763587028230,0.05399999,2963.8,2963.4,1.31249664]
[1763587028403,0.05399999,2963.8,2963.6,0.405504]
[1763587028913,0.05399999,2963.8,2963.7,0.522504]
[1763587029113,0.05399999,2963.8,2963.7,0.996704]
[1763587029324,0.05399999,2964.2,2963.8,0.405504]
[1763587029498,0.05399999,2964.2,2964.1,0.405504]
[1763587029692,0.05399999,2964.2,2964.1,0.522504]
[1763587030132,0.51489999,2964.6,2964.1,0.522504]
[1763587030329,0.52569999,2964.2,2964.1,0.405504]
[1763587030828,0.98659999,2964.2,2964.1,0.117]
[1763587031326,0.98659999,2964.2,2963.5,0.90699264]
[1763587031327,0.05399999,2963.7,2963.5,0.90699264]
[1763587031497,0.31689999,2963.7,2963.6,0.522504]
[1763587031807,0.05399999,2963.7,2963.6,0.522504]
[1763587032214,0.05399999,2963.9,2963.7,0.405504]
[1763587032829,0.05399999,2963.7,2963.6,0.522504]
[1763587032994,0.4609,2964.5,2963.7,0.405504]
[1763587033194,0.05399999,2964.0,2963.7,0.405504]
[1763587033618,0.4609,2964.5,2963.7,0.405504]
[1763587034706,0.05399999,2963.8,2963.5,0.90699264]
[1763587034907,0.05399999,2963.8,2962.7,0.1477]
[1763587034908,0.05399999,2963.2,2962.7,0.1477]
[1763587035109,0.05399999,2963.4,2962.8,0.117]
[1763587035308,0.05399999,2963.2,2962.3,0.1477]
[1763587035508,0.05399999,2963.0,2962.5,8.17540674]
[1763587035836,0.05399999,2963.3,2962.6,0.90699264]
[1763587036011,0.05399999,2963.5,2962.6,0.90699264]
[1763587036208,0.05399999,2963.5,2963.1,1.31249664]
[1763587036528,0.05399999,2962.9,2962.4,8.17540674]
[1763587036728,0.05399999,2962.9,2962.3,0.1477]
[1763587036729,0.05399999,2962.9,2962.3,0.001]
[1763587036930,0.05399999,2962.6,2962.5,0.117]
[1763587037533,0.05399999,2962.6,2962.5,9.19939938]
[1763587038627,0.05399999,2962.6,2962.3,0.001]
[1763587038628,0.98659999,2962.6,2962.3,0.001]
[1763587038937,0.98659999,2962.6,2962.5,0.117]
[1763587039136,0.05399999,2962.6,2962.5,0.117]
[1763587039637,0.05399999,2962.4,2962.3,0.001]
[1763587039835,0.05399999,2962.4,2962.3,0.15175755]
[1763587040236,0.05399999,2962.4,2962.3,0.55726155]
[1763587040736,0.05399999,2962.4,2962.3,0.523504]
[1763587040947,0.1942,2963.8,2962.4,0.405504]
[1763587040948,0.05399999,2962.7,2962.4,0.405504]
[1763587041129,0.05399999,2962.7,2962.6,1.31249664]
[1763587041333,0.05399999,2962.7,2962.6,0.405504]
[1763587041636,0.52569999,2962.7,2962.6,0.522504]
[1763587041813,0.05399999,2962.4,2962.3,0.001]
[1763587042016,0.30949999,2962.4,2962.3,0.001]
[1763587042315,0.77039999,2962.4,2962.3,0.001]
[1763587043336,0.77039999,2962.4,2962.3,0.118]
[1763587043543,0.05399999,2962.7,2962.3,0.118]
[1763587043837,0.05399999,2962.5,2962.4,0.405504]
[1763587044016,0.05399999,2962.5,2962.4,0.522504]
[1763587044217,0.4609,2963.3,2962.4,1.481304]
[1763587044517,0.4609,2963.3,2962.4,0.996704]
[1763587044716,0.05399999,2962.5,2962.4,0.996704]
[1763587045041,0.4609,2963.3,2962.4,0.996704]
[1763587045244,0.05399999,2963.0,2962.8,0.405504]
[1763587045548,0.05399999,2963.0,2962.8,1.31249664]
[1763587046040,0.05399999,2963.3,2962.8,1.31249664]
[1763587046246,0.05399999,2963.0,2962.8,1.31249664]
[1763587046760,0.05399999,2963.0,2962.8,0.51103903]
[1763587046761,0.6581,2962.9,2962.8,0.51103903]
[1763587046907,0.05399999,2962.4,2960.6,0.4672]
[1763587047109,0.05399999,2962.1,2961.1,8.48530674]
[1763587047409,0.05399999,2962.1,2961.6,0.117]
[1763587047740,0.05399999,2962.1,2960.1,0.6169]
[1763587047741,0.05399999,2961.8,2960.1,0.6169]
[1763587047951,0.05399999,2961.8,2960.7,0.117]
[1763587048124,0.54869999,2961.8,2960.7,0.117]
[1763587049028,0.4947,2961.8,2960.8,0.03377465]
[1763587049220,0.4947,2961.8,2960.7,0.117]
[1763587049426,0.4947,2961.8,2961.1,0.90699264]
[1763587049609,0.4947,2961.8,2961.2,0.405504]
[1763587050010,0.4947,2961.8,2960.8,0.405504]
[1763587050208,0.4947,2961.8,2960.7,0.117]
[1763587050437,0.54869999,2961.8,2960.7,0.117]
[1763587051362,0.10879999,2961.8,2961.2,8.17540674]
[1763587051648,0.05399999,2961.8,2961.4,0.405504]
[1763587052780,0.54869999,2961.8,2961.4,0.405504]
[1763587052987,0.54869999,2961.8,2961.3,0.90699264]
[1763587053346,0.05399999,2961.8,2961.4,0.405504]
[1763587054480,0.05399999,2961.8,2961.3,0.405504]
[1763587054787,0.05399999,2961.8,2961.6,0.001]
[1763587055556,0.05399999,2961.8,2961.7,8.58191074]
[1763587055781,0.05399999,2961.9,2961.8,0.405504]
[1763587056088,0.4947,2962.7,2961.8,0.405504]
[1763587056284,0.05399999,2961.9,2961.8,0.405504]
[1763587056580,0.15129999,2961.9,2961.7,0.001]
[1763587056783,0.5451,2961.8,2961.7,0.001]
[1763587057184,0.15129999,2961.9,2961.7,0.001]
[1763587057772,0.0548,2961.8,2961.7,0.001]
[1763587058296,0.5451,2961.8,2961.7,0.001]
[1763587062692,0.5451,2961.8,2958.6,0.1842]
[1763587062693,0.05399999,2958.9,2958.6,0.1842]
[1763587062867,0.0973,2961.9,2958.6,0.6788]
[1763587062868,0.05399999,2958.7,2958.6,0.6788]
[1763587063190,0.05399999,2958.7,2958.6,0.1842]
[1763587063391,0.05399999,2958.7,2958.3,8.17540674]
[1763587063596,0.05399999,2958.4,2958.1,0.4946]
[1763587063754,0.05399999,2958.4,2958.1,1.40159264]
[1763587064159,0.05399999,2958.4,2958.2,0.4946]
[1763587064394,0.05399999,2958.4,2958.1,1.40159264]
[1763587064580,0.05399999,2958.4,2958.2,0.4946]
[1763587064781,0.1825,2959.4,2958.2,0.4946]
[1763587064782,0.05399999,2959.0,2958.4,0.405504]
[1763587064985,0.05399999,2958.8,2958.2,8.67000674]
[1763587065184,0.05399999,2958.8,2958.3,0.4946]
[1763587065386,0.05399999,2958.4,2958.3,1.40159264]
[1763587065677,0.05399999,2958.7,2958.4,0.405504]
[1763587066191,0.05399999,2958.7,2958.4,0.900104]
[1763587066594,0.05399999,2958.7,2958.6,0.405504]
[1763587067094,0.1825,2959.4,2958.4,0.405504]
[1763587067095,0.05399999,2958.5,2958.4,0.405504]
[1763587067270,0.05399999,2958.5,2958.3,0.90699264]
[1763587067659,0.05399999,2958.5,2958.4,0.405504]
[1763587069373,0.05399999,2958.1,2958.0,0.17634351]
[1763587069695,0.05399999,2958.1,2958.0,0.67094351]
[1763587069896,0.05399999,2958.1,2958.0,1.08124751]
[1763587070096,0.05399999,2958.1,2958.0,0.67574351]
[1763587070594,0.05399999,2958.1,2958.0,1.17034351]
[1763587070762,0.05399999,2958.1,2958.0,1.57584751]
[1763587072904,0.05399999,2957.6,2957.3,0.001]
[1763587073067,0.75599999,2957.6,2957.3,0.001]
[1763587073398,0.75599999,2957.6,2957.5,0.1776937]
[1763587073801,0.25949999,2957.6,2957.5,0.1776937]
[1763587074101,0.05399999,2957.6,2957.5,0.1776937]
[1763587074668,0.59899999,2957.6,2957.5,0.1776937]
[1763587074978,0.10699999,2957.6,2957.5,0.1776937]
[1763587075182,0.59899999,2957.6,2957.5,0.1776937]
[1763587075501,0.10699999,2957.6,2957.5,0.1776937]
[1763587075993,0.1775,2956.4,2954.5,0.4946]
[1763587076205,0.1775,2956.4,2954.2,0.1842]
[1763587076206,0.05399999,2956.0,2955.1,8.14353804]
[1763587076369,1.3,2957.6,2955.1,8.14353804]
[1763587076370,0.05399999,2955.5,2955.1,0.1842]
[1763587076569,0.05399999,2955.5,2955.2,0.52843865]
[1763587076770,0.05399999,2955.5,2955.1,0.1842]
[1763587076971,0.05399999,2955.1,2954.9,7.95933804]
[1763587077192,0.05399999,2955.1,2954.7,0.4946]
[1763587077392,0.05399999,2954.7,2954.6,0.17678859]
[1763587077770,0.05399999,2954.7,2954.6,0.67138859]
[1763587078205,0.664,2955.9,2954.6,0.67138859]
[1763587078206,0.05399999,2955.1,2954.6,0.67138859]
[1763587078379,0.05399999,2955.1,2955.0,0.90699264]
[1763587078581,0.05399999,2955.1,2955.0,1.31249664]
[1763587079274,0.05399999,2954.7,2954.6,0.17678859]
[1763587079605,0.1675,2955.9,2954.7,0.405504]
[1763587079606,0.05399999,2955.1,2954.7,0.405504]
[1763587079806,0.05399999,2955.1,2955.0,1.31249664]
[1763587080014,0.1675,2955.9,2955.0,1.31249664]
[1763587080015,0.05399999,2955.4,2955.0,1.31249664]
[1763587080308,0.05399999,2955.4,2955.2,0.405504]
[1763587080508,0.4965,2956.5,2955.2,0.405504]
[1763587080812,0.1775,2956.6,2955.8,1.31249664]
[1763587081409,8.12683804,2959.0,2956.6,1.31249664]
[1763587081410,0.4965,2958.1,2956.6,1.31249664]
[1763587081593,0.05399999,2957.2,2957.1,0.405504]
[1763587082110,0.05399999,2957.2,2957.1,1.084304]
[1763587082312,0.05399999,2957.7,2957.1,1.084304]
[1763587082614,0.1675,2959.0,2956.6,0.900104]
[1763587082615,0.05399999,2956.7,2956.6,0.900104]
[1763587082783,0.05399999,2956.7,2956.6,1.40159264]
[1763587083324,0.1525,2957.6,2956.7,0.405504]
[1763587083325,0.05399999,2956.8,2956.7,0.405504]
[1763587083682,0.05399999,2956.8,2956.6,1.40159264]
[1763587083927,0.05399999,2956.8,2956.6,0.90699264]
[1763587084430,0.05399999,2956.8,2956.7,0.405504]
[1763587084586,0.1525,2957.6,2956.7,0.900104]
[1763587084785,0.05399999,2956.8,2956.7,0.900104]
[1763587085278,0.05399999,2957.0,2956.7,0.900104]
[1763587085478,0.1525,2957.6,2956.7,0.405504]
[1763587085479,0.05399999,2956.8,2956.7,0.405504]
[1763587085727,0.1525,2957.6,2956.7,0.900104]
[1763587085929,0.05399999,2956.9,2956.7,0.405504]
[1763587086283,0.05399999,2956.9,2956.8,0.900104]
[1763587086829,0.05399999,2957.2,2956.8,0.900104]
[1763587087038,0.1525,2957.9,2956.2,0.1842]
[1763587087039,0.22649999,2956.9,2956.2,0.1842]
[1763587087324,0.05399999,2956.3,2956.2,0.1842]
[1763587087637,0.05399999,2956.6,2956.3,0.405504]
[1763587087931,0.05399999,2956.8,2956.6,1.31249664]
[1763587088307,0.05399999,2956.8,2956.7,0.904104]
[1763587088619,0.05399999,2956.8,2956.7,0.405504]
[1763587089492,0.05399999,2956.8,2956.7,0.904104]
[1763587089697,0.05399999,2956.8,2956.7,8.61816004]
[1763587090008,0.05399999,2956.8,2956.7,8.11956004]
[1763587091005,0.05399999,2956.8,2956.7,8.61816004]
[1763587091682,0.05399999,2956.8,2956.7,1.31249664]
[1763587092079,0.05399999,2956.8,2956.7,0.90699264]
[1763587092312,0.05399999,2956.8,2956.7,1.31249664]
[1763587093116,0.05399999,2956.8,2956.7,0.90699264]
[1763587093417,0.51059999,2956.8,2956.6,0.001]
[1763587095384,0.05399999,2956.8,2956.6,0.001]
[1763587095691,0.05399999,2956.7,2956.6,0.001]
[1763587096025,0.1525,2957.9,2956.7,0.405504]
[1763587096026,0.6091,2957.9,2956.7,0.405504]
[1763587096183,0.05399999,2956.9,2956.7,0.405504]
[1763587096386,0.05399999,2956.9,2956.8,1.81109664]
[1763587096583,0.1525,2957.9,2956.9,0.405504]
[1763587096817,0.4566,2958.3,2957.3,1.31249664]
[1763587097330,0.1725,2960.0,2958.3,0.405504]
[1763587097331,0.1675,2958.8,2958.3,0.405504]
[1763587097637,0.1725,2960.0,2958.3,0.405504]
[1763587097638,0.1725,2959.4,2958.3,1.31249664]
[1763587097933,0.6291,2960.0,2959.0,0.405504]
[1763587098231,0.6291,2960.0,2959.0,1.31249664]
[1763587098400,0.05399999,2959.1,2959.0,1.81109664]
[1763587098595,0.05399999,2959.1,2959.0,1.31249664]
[1763587098834,0.05399999,2958.7,2958.6,0.405504]
[1763587099332,0.05399999,2958.7,2958.6,0.904104]
[1763587099536,0.05399999,2958.7,2958.6,0.405504]
[1763587100622,0.51059999,2958.7,2957.7,0.90699264]
[1763587100802,0.05399999,2958.0,2957.7,0.90699264]
[1763587100999,0.05399999,2958.0,2957.7,1.40559264]
[1763587101203,0.05399999,2958.0,2957.8,0.4986]
[1763587101399,0.05399999,2958.0,2957.7,0.90699264]
[1763587101599,0.05399999,2958.0,2957.8,0.405504]
[1763587102036,0.05399999,2958.0,2957.8,0.904104]
[1763587102348,0.05399999,2957.9,2957.8,0.904104]
[1763587102522,0.05399999,2958.3,2958.0,0.405504]
[1763587103144,0.05399999,2958.3,2958.2,0.405504]
[1763587103644,0.17,2959.0,2957.9,0.90699264]
[1763587103645,0.05399999,2958.0,2957.9,0.90699264]
[1763587103812,0.05399999,2958.0,2957.9,1.31249664]
[1763587104647,0.05399999,2958.0,2957.9,1.81109664]
[1763587105347,0.05399999,2958.2,2958.0,0.405504]
[1763587105645,0.05399999,2958.4,2958.3,0.405504]
[1763587105952,0.05399999,2958.6,2958.5,0.405504]
[1763587106447,0.05399999,2958.9,2958.7,0.405504]
[1763587106634,0.1725,2960.0,2958.9,1.31249664]
[1763587106822,0.05399999,2959.0,2958.9,1.31249664]
[1763587107224,0.05399999,2959.0,2958.9,1.80309664]
[1763587108650,0.05399999,2959.0,2958.9,1.31249664]
[1763587108947,0.002,2958.6,2958.5,0.405504]
[1763587109839,0.002,2958.6,2958.5,0.896104]
[1763587110647,0.05399999,2958.8,2958.5,0.896104]
[1763587110851,0.05399999,2959.1,2958.7,0.405504]
[1763587111020,0.05399999,2959.1,2959.0,8.11956004]
[1763587112069,0.05399999,2959.1,2959.0,8.61016004]
[1763587112938,0.6413,2960.0,2959.1,1.31249664]
[1763587112939,0.05399999,2959.3,2959.1,1.31249664]
[1763587113138,0.05399999,2959.6,2959.3,1.31249664]
[1763587113318,0.05399999,2959.6,2959.5,8.11956004]
[1763587113521,0.05399999,2959.8,2959.6,1.31249664]
[1763587113744,0.05399999,2959.6,2959.3,0.90699264]
[1763587113948,0.05399999,2959.2,2958.7,6.8070634]
[1763587114219,0.05399999,2959.0,2958.9,0.90699264]
[1763587114541,0.05399999,2959.2,2959.0,0.405504]
[1763587114850,0.17,2960.6,2958.9,0.90699264]
[1763587114851,0.05399999,2959.0,2958.9,0.90699264]
[1763587115153,0.05399999,2959.4,2959.0,0.896104]
[1763587115357,0.05399999,2959.4,2959.3,8.11956004]
[1763587115655,0.52279999,2959.4,2959.3,0.90699264]
[1763587115864,0.05399999,2959.4,2959.3,0.90699264]
[1763587116853,0.05399999,2959.4,2959.3,1.31249664]
[1763587119262,0.12679999,2959.4,2959.3,0.90699264]
[1763587119420,0.59929999,2959.4,2959.3,0.90699264]
[1763587119750,0.12679999,2959.4,2959.3,0.90699264]
[1763587119953,0.05399999,2958.4,2958.1,0.696]
[1763587120358,0.05399999,2958.4,2958.3,0.4703]
[1763587120522,0.05399999,2958.4,2958.3,0.875804]
[1763587120719,0.05399999,2958.4,2958.3,0.4703]
[1763587121522,0.05399999,2958.4,2958.1,0.1985]
[1763587121726,0.05399999,2958.4,2958.2,0.405504]
[1763587122234,0.05399999,2958.4,2958.1,0.1985]
[1763587122561,0.05399999,2958.4,2958.3,0.405504]
[1763587123862,0.05399999,2958.7,2958.3,1.373304]
[1763587125464,0.05399999,2959.0,2958.9,0.405504]
[1763587126260,0.51519999,2959.0,2958.9,0.405504]
[1763587126450,0.05399999,2958.5,2958.3,0.001]
[1763587127898,0.05399999,2958.5,2958.4,0.875804]
[1763587128504,0.05399999,2958.7,2958.5,0.405504]
[1763587128707,0.17,2958.9,2958.3,0.001]
[1763587128708,0.05399999,2958.4,2958.3,0.001]
[1763587129205,0.51519999,2958.4,2958.3,0.001]
[1763587129871,0.60309999,2958.4,2958.3,0.001]
[1763587131427,0.51519999,2958.4,2958.3,0.001]
[1763587132011,0.05399999,2958.4,2958.3,0.001]
[1763587132208,0.51149999,2958.4,2958.3,0.001]
[1763587132530,0.60309999,2958.4,2958.3,0.001]
[1763587141865,1.00860399,2958.4,2958.3,0.001]
[1763587143864,0.45950399,2958.1,2958.0,0.001]
[1763587144044,0.96385365,2958.1,2958.0,0.001]
[1763587144218,1.50915365,2958.1,2958.0,0.001]
[1763587144414,1.60915365,2958.1,2958.0,0.001]
[1763587144617,1.50915365,2958.1,2958.0,0.001]
[1763587144846,1.60915365,2958.1,2958.0,0.001]
[1763587145625,0.05399999,2956.7,2956.6,0.001]
[1763587145840,0.60329999,2956.7,2956.6,0.001]
[1763587147179,1.00880399,2956.7,2956.6,0.001]
[1763587149384,1.10880399,2956.7,2956.6,0.001]